bitfinex-derivatives/quotes_SOLF0:USTF0_20250712
["timestamp","ask_amount","ask_price","bid_price","bid_amount"]
[1752334543307,3.35,158.82,158.79,3.33]
[1752334543610,3.35,158.81,158.79,9.6251]
[1752334543810,3.35,158.81,158.8,3.33]
[1752334544109,3.35,158.83,158.76,5.17416269]
[1752334544304,3.35,158.83,158.81,9.6244]
[1752334544499,3.35,158.83,158.81,3.33]
[1752334544897,3.53,158.82,158.81,3.33]
[1752334545103,3.53,158.81,158.79,3.69]
[1752334545310,3.53,158.81,158.79,9.9853]
[1752334546610,3.53,158.8,158.79,3.69]
[1752334547608,9.825,158.8,158.77,6.296]
[1752334547810,3.53,158.79,158.77,3.69]
[1752334548006,6.2957,158.79,158.75,6.2968]
[1752334548206,5.17416269,158.81,158.76,3.69]
[1752334548412,3.53,158.77,158.76,3.69]
[1752334548609,3.53,158.77,158.7,3.69]
[1752334549115,8.70416269,158.77,158.72,6.298]
[1752334549304,3.53,158.76,158.68,3.69]
[1752334549703,9.827,158.75,158.71,6.2983]
[1752334549908,5.23137421,158.83,158.67,5.17416269]
[1752334550102,5.23137421,158.83,158.7,3.69]
[1752334550103,3.53,158.76,158.7,3.69]
[1752334551008,3.53,158.76,158.74,6.2971]
[1752334551205,3.53,158.76,158.74,9.9871]
[1752334551612,3.53,158.76,158.75,6.297]
[1752334551813,3.53,158.78,158.76,3.69]
[1752334552012,3.53,158.78,158.77,3.69]
[1752334552311,3.53,158.78,158.77,9.9862]
[1752334553101,202.32,158.82,158.79,3.69]
[1752334553302,3.53,158.81,158.79,3.69]
[1752334553907,3.53,158.81,158.79,9.9851]
[1752334554311,3.53,158.81,158.8,3.69]
[1752334554611,3.53,158.84,158.81,3.69]
[1752334555107,6.2935,158.84,158.81,9.9846]
[1752334555514,3.53,158.82,158.81,9.9846]
[1752334555908,3.53,158.81,158.78,3.69]
[1752334556112,3.53,158.81,158.74,3.69]
[1752334556113,5.17416269,158.81,158.74,3.69]
[1752334556306,3.53,158.8,158.74,3.69]
[1752334556510,3.53,158.79,158.77,6.2959]
[1752334556709,3.53,158.79,158.77,9.9859]
[1752334556903,3.53,158.79,158.68,19.59776311]
[1752334556904,6.2956,158.79,158.75,9.9866]
[1752334557109,5.17416269,158.81,158.75,9.9866]
[1752334557311,3.53,158.77,158.75,9.9866]
[1752334558010,3.53,158.76,158.75,3.69]
[1752334558317,5.17416269,158.79,158.71,3.69]
[1752334558613,5.17416269,158.79,158.74,9.9871]
[1752334558614,3.53,158.78,158.74,9.9871]
[1752334559010,769.60137421,158.87,158.7,3.69]
[1752334559011,3.53,158.74,158.7,3.69]
[1752334559216,3.53,158.72,158.71,3.69]
[1752334559609,3.53,158.72,158.7,6.2987]
[1752334559809,3.53,158.72,158.7,9.9887]
[1752334560009,3.53,158.72,158.7,3.69]
[1752334560215,3.53,158.72,158.71,3.69]
[1752334560714,3.53,158.72,158.66,3.69]
[1752334560912,200.92,158.78,158.67,3.69]
[1752334561112,3.53,158.77,158.71,3.69]
[1752334561312,3.53,158.79,158.72,5.17416269]
[1752334561513,3.53,158.79,158.73,3.69]
[1752334561708,8.70416269,158.79,158.73,3.69]
[1752334561914,3.53,158.76,158.65,746.1]
[1752334562110,3.53,158.76,158.67,3.69]
[1752334562413,5.17416269,158.77,158.67,3.69]
[1752334562617,3.53,158.74,158.67,3.69]
[1752334562810,6.2974,158.74,158.71,6.2984]
[1752334563013,3.53,158.71,158.69,3.69]
[1752334563414,3.53,158.72,158.68,9.9894]
[1752334563611,5.17416269,158.71,158.62,5.17416269]
[1752334563809,5.17416269,158.71,158.6,6.99836311]
[1752334563810,3.53,158.7,158.63,3.69]
[1752334564616,3.53,158.7,158.64,5.17416269]
[1752334564814,3.53,158.7,158.65,3.69]
[1752334565113,6.2985,158.72,158.68,6.2994]
[1752334565306,3.53,158.69,158.66,3.69]
[1752334565511,3.53,158.69,158.67,3.69]
[1752334565707,3.53,158.69,158.67,9.9898]
[1752334566011,3.53,158.73,158.65,3.69]
[1752334566414,3.53,158.72,158.7,6.2988]
[1752334566817,3.53,158.72,158.71,6.2985]
[1752334567415,206.01416269,158.76,158.69,9.9892]
[1752334567620,3.53,158.73,158.69,6.2992]
[1752334567820,3.53,158.71,158.64,3.69]
[1752334568011,6.2998,158.68,158.65,6.3008]
[1752334568319,3.53,158.67,158.6,3.69]
[1752334568518,3.53,158.65,158.61,9.9924]
[1752334568719,5.17416269,158.64,158.55,6.99836311]
[1752334568921,3.53,158.63,158.61,6.3023]
[1752334569221,3.53,158.63,158.56,3.69]
[1752334569520,9.8318,158.63,158.56,3.69]
[1752334569720,6.3018,158.63,158.56,3.69]
[1752334569920,3.53,158.62,158.56,3.69]
[1752334570121,5.1944488,158.62,158.53,3.69]
[1752334570316,3.53,158.61,158.53,3.69]
[1752334570516,3.53,158.61,158.52,165.85116843]
[1752334570517,3.53,158.63,158.62,6.3021]
[1752334570719,3.53,158.63,158.62,3.69]
[1752334570916,5.19324524,158.65,158.55,5.19324524]
[1752334571117,3.53,158.62,158.54,3.69]
[1752334571326,3.53,158.62,158.56,3.69]
[1752334571522,549.16820228,158.77,158.57,3.69]
[1752334571523,8.72324524,158.66,158.57,3.69]
[1752334571720,3.53,158.69,158.61,3.69]
[1752334571918,3.53,158.69,158.63,3.69]
[1752334572119,5.19324524,158.7,158.65,9.9906]
[1752334572322,3.53,158.67,158.65,9.9906]
[1752334572528,3.53,158.71,158.66,3.69]
[1752334572727,3.53,158.7,158.66,3.69]
[1752334573025,3.53,158.7,158.64,3.69]
[1752334573222,3.53,158.68,158.64,3.69]
[1752334573527,3.53,158.66,158.62,3.69]
[1752334573725,3.53,158.66,158.61,5.19324524]
[1752334573726,3.53,158.65,158.63,3.69]
[1752334574327,3.53,158.65,158.63,9.9916]
[1752334574721,3.53,158.65,158.64,6.3013]
[1752334575028,3.63,158.69,158.61,8.67324524]
[1752334575630,3.63,158.67,158.61,3.48]
[1752334575831,3.63,158.65,158.61,3.48]
[1752334576525,3.63,158.66,158.6,3.48]
[1752334576828,11.49394524,158.66,158.62,6.3019]
[1752334577017,3.63,158.64,158.62,9.7819]
[1752334577221,3.63,158.63,158.62,9.7819]
[1752334577423,3.63,158.63,158.57,5.19324524]
[1752334577625,3.63,158.63,158.61,3.48]
[1752334577825,3.63,158.63,158.61,9.7824]
[1752334578024,3.63,158.63,158.61,3.48]
[1752334578425,6.301,158.65,158.61,9.7824]
[1752334578629,3.63,158.62,158.61,3.48]
[1752334578827,3.63,158.61,158.58,3.48]
[1752334579132,3.63,158.61,158.57,3.48]
[1752334579426,3.63,158.63,158.57,3.48]
[1752334579931,3.63,158.62,158.61,6.3025]
[1752334580531,3.63,158.62,158.51,200.78]
[1752334580532,3.63,158.65,158.58,5.19324524]
[1752334580728,3.63,158.65,158.59,3.48]
[1752334580930,3.63,158.65,158.62,6.3018]
[1752334581234,3.63,158.64,158.62,9.7818]
[1752334581429,9.9312,158.65,158.62,9.7818]
[1752334581630,3.63,158.64,158.62,9.7818]
[1752334581825,3.63,158.63,158.61,9.7824]
[1752334582431,5.19324524,158.66,158.62,6.3021]
[1752334582631,6.3012,158.65,158.57,5.19324524]
[1752334582830,3.63,158.63,158.61,3.48]
[1752334583028,5.19324524,158.64,158.51,200.78]
[1752334583234,3.63,158.63,158.56,3.48]
[1752334583436,3.63,158.63,158.62,6.3021]
[1752334583636,3.63,158.63,158.58,3.48]
[1752334583828,3.63,158.62,158.6,6.3027]
[1752334584133,5.19324524,158.64,158.56,3.48]
[1752334584435,3.63,158.61,158.58,3.48]
[1752334584733,8.82324524,158.66,158.58,3.48]
[1752334584933,3.63,158.64,158.61,9.7822]
[1752334585133,3.63,158.63,158.61,9.7822]
[1752334585334,5.19324524,158.66,158.59,3.48]
[1752334585535,3.63,158.61,158.59,3.48]
[1752334585739,3.63,158.61,158.6,6.3028]
[1752334585933,544.42,158.67,158.57,3.48]
[1752334585934,3.63,158.6,158.57,3.48]
[1752334586134,3.63,158.6,158.55,3.48]
[1752334586135,3.63,158.59,158.55,3.48]
[1752334586334,3.63,158.58,158.56,3.48]
[1752334586934,3.63,158.59,158.56,3.48]
[1752334587136,3.63,158.61,158.57,3.48]
[1752334587936,3.63,158.63,158.55,3.48]
[1752334588128,3.63,158.61,158.55,3.48]
[1752334588537,3.63,158.61,158.59,6.303]
[1752334588833,3.63,158.6,158.59,6.303]
[1752334589031,6.3025,158.61,158.58,9.7837]
[1752334589234,3.63,158.59,158.58,6.3037]
[1752334589637,3.63,158.59,158.57,9.784]
[1752334589837,3.63,158.59,158.51,5.19324524]
[1752334590036,3.63,158.59,158.52,3.48]
[1752334590332,3.63,158.58,158.52,3.48]
[1752334590638,3.63,158.58,158.57,6.3041]
[1752334590837,3.63,158.58,158.57,9.7841]
[1752334591435,6.3032,158.6,158.58,6.3037]
[1752334591634,3.63,158.58,158.57,3.48]
[1752334591842,3.63,158.59,158.57,3.48]
[1752334592030,5.19324524,158.62,158.58,3.48]
[1752334592235,3.63,158.63,158.56,3.48]
[1752334592442,544.42,158.67,158.59,5.19324524]
[1752334592740,3.63,158.65,158.63,9.7815]
[1752334593041,3.63,158.64,158.63,9.7815]
[1752334593243,3.63,158.64,158.56,3.48]
[1752334593840,3.63,158.64,158.6,6.3027]
[1752334594133,3.63,158.64,158.58,3.48]
[1752334594337,5.19324524,158.63,158.58,3.48]
[1752334594541,3.63,158.62,158.58,3.48]
[1752334594737,3.63,158.62,158.56,6.3044]
[1752334594939,544.42,158.67,158.52,3.48]
[1752334594940,3.63,158.59,158.52,3.48]
[1752334595240,6.304,158.58,158.54,6.3051]
[1752334595433,3.63,158.57,158.52,3.48]
[1752334595632,575.9108,158.67,158.5,3.48]
[1752334595633,3.63,158.55,158.5,3.48]
[1752334595839,3.63,158.53,158.46,5.19587533]
[1752334596040,5.19877911,158.58,158.49,3.48]
[1752334596438,3.63,158.54,158.51,3.48]
[1752334596640,3.63,158.53,158.51,3.48]
[1752334597035,3.63,158.52,158.49,3.48]
[1752334597243,3.63,158.53,158.46,3.48]
[1752334597545,3.63,158.52,158.5,3.48]
[1752334597734,3.63,158.52,158.45,201.06]
[1752334597940,3.63,158.51,158.46,3.48]
[1752334598236,3.63,158.5,158.42,6.91228229]
[1752334598438,3.63,158.54,158.48,3.48]
[1752334598631,3.63,158.54,158.52,3.48]
[1752334599038,6.3046,158.56,158.52,3.48]
[1752334599244,3.63,158.52,158.44,3.48]
[1752334599441,3.63,158.52,158.46,3.48]
[1752334599743,3.63,158.52,158.5,3.48]
[1752334600139,5.19877911,158.54,158.46,5.19877911]
[1752334600441,3.63,158.57,158.51,3.48]
[1752334600637,6.3056,158.54,158.51,3.48]
[1752334600836,3.63,158.52,158.5,3.48]
[1752334601043,5.19877911,158.56,158.51,3.48]
[1752334601245,3.63,158.55,158.52,9.7861]
[1752334601441,3.63,158.55,158.47,3.48]
[1752334601842,5.19877911,158.56,158.5,9.7866]
[1752334602038,5.19877911,158.56,158.47,3.48]
[1752334602237,3.63,158.54,158.47,3.48]
[1752334602442,3.63,158.53,158.51,9.7862]
[1752334603141,3.63,158.52,158.51,3.48]
[1752334603341,3.63,158.52,158.47,3.48]
[1752334603739,3.63,158.54,158.47,3.48]
[1752334603944,3.63,158.54,158.48,3.48]
[1752334604243,5.19877911,158.54,158.49,3.48]
[1752334604443,3.63,158.53,158.46,3.48]
[1752334604747,3.63,158.53,158.47,3.34]
[1752334604949,11.50417911,158.54,158.5,6.3066]
[1752334605150,3.62,158.52,158.5,3.34]
[1752334605442,6.3053,158.54,158.49,3.34]
[1752334605648,3.62,158.53,158.47,3.34]
[1752334606042,3.62,158.52,158.47,3.34]
[1752334606643,3.62,158.57,158.48,5.19877911]
[1752334606844,3.62,158.57,158.49,3.34]
[1752334607043,5.19877911,158.57,158.52,6.3059]
[1752334607249,3.62,158.54,158.45,5.19877911]
[1752334607450,3.62,158.54,158.46,3.34]
[1752334607751,6.3059,158.53,158.46,3.34]
[1752334607948,3.62,158.52,158.46,3.34]
[1752334608150,3.62,158.52,158.49,6.307]
[1752334608345,3.62,158.5,158.49,9.647]
[1752334608842,203.48,158.61,158.47,5.19877911]
[1752334609148,3.62,158.51,158.47,3.34]
[1752334609341,3.62,158.5,158.48,3.34]
[1752334609547,8.81877911,158.5,158.43,3.34]
[1752334609742,3.62,158.5,158.43,8.53877911]
[1752334609945,5.19877911,158.52,158.43,8.53877911]
[1752334609946,3.62,158.51,158.48,9.6477]
[1752334610152,5.19877911,158.52,158.48,3.34]
[1752334610344,3.62,158.49,158.48,3.34]
[1752334610539,3.62,158.51,158.49,3.34]
[1752334610945,3.62,158.49,158.47,3.34]
[1752334611146,3.62,158.49,158.48,3.34]
[1752334611643,3.62,158.51,158.48,3.34]
[1752334611852,3.62,158.5,158.48,3.34]
[1752334612347,3.62,158.52,158.46,3.34]
[1752334612543,6.3067,158.51,158.48,6.3074]
[1752334612748,3.62,158.5,158.48,9.6474]
[1752334613149,3.62,158.49,158.48,9.6474]
[1752334613348,3.62,158.51,158.49,3.34]
[1752334613545,3.62,158.5,158.44,3.34]
[1752334613850,3.62,158.5,158.46,3.34]
[1752334614041,3.62,158.5,158.47,6.308]
[1752334614245,3.62,158.5,158.48,3.34]
[1752334614452,6.3068,158.51,158.48,3.34]
[1752334614453,3.62,158.49,158.48,3.34]
[1752334614653,3.62,158.49,158.47,9.648]
[1752334615153,3.62,158.49,158.48,9.6477]
[1752334615851,3.62,158.49,158.44,3.34]
[1752334616041,3.62,158.48,158.45,3.34]
[1752334616242,3.62,158.53,158.47,3.34]
[1752334616554,3.62,158.53,158.49,3.34]
[1752334616751,3.62,158.53,158.51,6.3061]
[1752334616950,3.62,158.52,158.51,3.34]
[1752334617146,3.62,158.53,158.48,3.34]
[1752334617553,3.62,158.53,158.47,5.19877911]
[1752334617554,3.62,158.55,158.53,3.34]
[1752334617754,3.62,158.54,158.49,5.19877911]
[1752334617951,3.62,158.54,158.5,3.34]
[1752334618148,3.62,158.54,158.48,3.34]
[1752334619148,3.62,158.54,158.49,5.19877911]
[1752334619353,3.62,158.59,158.51,5.19877911]
[1752334619552,3.62,158.59,158.54,3.34]
[1752334619951,3.62,158.58,158.54,3.34]
[1752334620556,3.62,158.56,158.55,3.34]
[1752334620753,5.19877911,158.59,158.53,3.34]
[1752334621054,3.62,158.54,158.48,3.34]
[1752334621458,5.19877911,158.6,158.48,3.34]
[1752334621459,6.3063,158.52,158.48,3.34]
[1752334621656,5.19877911,158.52,158.44,3.34]
[1752334621850,3.62,158.51,158.43,5.2728705]
[1752334622162,3.62,158.51,158.44,3.34]
[1752334622352,3.62,158.51,158.46,6.3082]
[1752334622559,3.62,158.51,158.46,3.34]
[1752334622865,3.62,158.55,158.49,5.19877911]
[1752334623060,8.81877911,158.55,158.49,3.34]
[1752334623267,3.62,158.54,158.49,3.34]
[1752334623560,3.62,158.54,158.5,3.34]
[1752334623968,3.62,158.53,158.5,3.34]
[1752334624169,3.62,158.51,158.46,3.34]
[1752334624459,9.9264,158.52,158.48,6.3074]
[1752334624664,3.62,158.52,158.46,3.34]
[1752334625067,6.3073,158.49,158.46,9.6482]
[1752334625261,3.62,158.48,158.46,3.34]
[1752334625460,3.62,158.48,158.43,5.2728705]
[1752334625662,3.62,158.48,158.42,15.52515279]
[1752334625863,3.62,158.49,158.43,3.34]
[1752334626366,9.9275,158.49,158.43,3.34]
[1752334626866,9.9275,158.49,158.43,5.2728705]
[1752334627063,3.62,158.48,158.45,3.34]
[1752334627272,3.62,158.47,158.44,5.2728705]
[1752334627462,3.62,158.6,158.45,5.19877911]
[1752334627664,9.925,158.55,158.47,5.19877911]
[1752334627959,9.925,158.55,158.5,3.34]
[1752334628161,9.9253,158.54,158.51,9.6464]
[1752334628359,3.62,158.56,158.49,3.34]
[1752334628966,3.62,158.54,158.49,3.34]
[1752334629467,3.62,158.49,158.47,5.2728705]
[1752334629767,3.62,158.48,158.46,8.6128705]
[1752334629967,3.62,158.5,158.48,3.34]
[1752334630363,9.9273,158.5,158.48,3.34]
[1752334630565,3.62,158.49,158.46,14.9212705]
[1752334630764,3.62,158.48,158.46,3.34]
[1752334631470,3.62,158.48,158.46,9.6484]
[1752334631770,24.08877911,158.6,158.45,5.2728705]
[1752334631967,5.19877911,158.53,158.47,6.3081]
[1752334632168,3.62,158.49,158.46,3.34]
[1752334632370,3.62,158.49,158.47,3.34]
[1752334632864,3.62,158.48,158.46,3.34]
[1752334633169,3.62,158.5,158.46,3.34]
[1752334633360,3.62,158.5,158.47,6.3078]
[1752334633561,3.62,158.49,158.47,6.3078]
[1752334633768,3.62,158.49,158.47,9.6478]
[1752334634360,3.62,158.5,158.45,3.34]
[1752334634568,3.62,158.49,158.47,3.34]
[1752334634967,3.38,158.5,158.44,8.6128705]
[1752334635271,3.38,158.48,158.46,3.34]
[1752334635474,3.38,158.48,158.43,5.2728705]
[1752334635475,3.38,158.48,158.47,3.34]
[1752334635663,5.19877911,158.5,158.44,3.34]
[1752334635862,3.38,158.47,158.45,9.6487]
[1752334636163,3.38,158.47,158.46,3.34]
[1752334636369,9.6879,158.48,158.46,3.34]
[1752334636569,3.38,158.47,158.46,3.34]
[1752334636769,3.38,158.47,158.45,6.3087]
[1752334636770,9.6881,158.47,158.45,3.34]
[1752334636967,3.38,158.46,158.43,5.2728705]
[1752334637172,5.19877911,158.46,158.42,12.18515279]
[1752334637468,5.19877911,158.46,158.42,10.25228229]
[1752334637469,3.38,158.44,158.42,10.25228229]
[1752334637771,3.38,158.44,158.42,15.52515279]
[1752334637963,3.38,158.46,158.43,3.34]
[1752334638168,9.6892,158.45,158.43,3.34]
[1752334638468,3.38,158.47,158.42,15.52515279]
[1752334638672,3.38,158.46,158.44,6.3093]
[1752334638868,203.74,158.53,158.42,6.91228229]
[1752334639078,3.38,158.47,158.43,8.6128705]
[1752334639268,3.38,158.45,158.43,3.34]
[1752334639469,3.38,158.45,158.42,12.18515279]
[1752334639667,6.3096,158.44,158.42,6.91228229]
[1752334639971,3.38,158.43,158.42,6.91228229]
[1752334640170,9.6897,158.43,158.42,6.91228229]
[1752334640377,3.38,158.43,158.42,6.91228229]
[1752334640877,3.38,158.43,158.42,10.25228229]
[1752334641067,3.38,158.44,158.42,10.25228229]
[1752334641275,3.38,158.44,158.42,16.56238229]
[1752334641472,3.38,158.43,158.42,6.91228229]
[1752334641666,5.19877911,158.46,158.42,10.25228229]
[1752334641870,3.38,158.44,158.42,10.25228229]
[1752334642069,5.23055761,158.54,158.43,3.34]
[1752334642276,3.38,158.48,158.43,3.34]
[1752334642464,9.689,158.45,158.42,16.56218229]
[1752334642669,3.38,158.46,158.43,3.34]
[1752334642964,3.38,158.45,158.43,9.6496]
[1752334643169,3.38,158.45,158.43,3.34]
[1752334643370,9.6892,158.45,158.43,3.34]
[1752334643677,9.6892,158.45,158.42,6.91228229]
[1752334643678,3.38,158.44,158.42,10.25228229]
[1752334643877,3.38,158.44,158.43,3.34]
[1752334644268,5.19877911,158.45,158.42,6.91228229]
[1752334644475,3.38,158.44,158.42,6.91228229]
[1752334645378,14.88847911,158.43,158.42,6.91228229]
[1752334645572,9.6897,158.43,158.42,6.91228229]
[1752334645976,24.08877911,158.5,158.42,10.25228229]
[1752334645977,3.38,158.49,158.42,10.25228229]
[1752334646173,5.19877911,158.44,158.42,6.91228229]
[1752334646371,324.09986658,158.43,158.36,5.29915132]
[1752334646573,5.20986658,158.37,158.35,5.29915132]
[1752334646774,300.0,158.43,158.35,8.63915132]
[1752334646975,5.20982209,158.39,158.36,3.34]
[1752334647376,6.3121,158.37,158.36,3.34]
[1752334647576,5.20982209,158.39,158.36,3.34]
[1752334647878,222.87,158.45,158.36,3.34]
[1752334648085,5.20982209,158.42,158.37,3.34]
[1752334648381,5.20982209,158.38,158.36,3.34]
[1752334648780,18.89,158.44,158.36,3.34]
[1752334648972,5.20982209,158.4,158.37,3.34]
[1752334649174,5.20982209,158.4,158.35,3.34]
[1752334649376,5.20982209,158.4,158.36,3.34]
[1752334649883,11.52172209,158.38,158.36,3.34]
[1752334650385,11.52172209,158.38,158.35,6.3126]
[1752334650881,5.20982209,158.36,158.3,3.34]
[1752334651079,5.20982209,158.34,158.27,3.34]
[1752334651280,18.89,158.37,158.27,3.34]
[1752334651584,5.20982209,158.32,158.29,3.34]
[1752334651782,5.20982209,158.32,158.22,5.27954445]
[1752334651783,18.89,158.37,158.28,3.34]
[1752334652082,18.89,158.37,158.27,5.27954445]
[1752334652083,5.20982209,158.35,158.27,3.34]
[1752334652279,6.3147,158.31,158.26,5.27954445]
[1752334652482,5.20982209,158.33,158.24,3.34]
[1752334652686,545.2,158.38,158.27,3.34]
[1752334652880,11.52332209,158.34,158.27,3.34]
[1752334653079,11.52332209,158.34,158.31,3.34]
[1752334653383,6.3139,158.33,158.31,3.34]
[1752334653583,545.2,158.38,158.26,5.20982209]
[1752334653791,550.40982209,158.38,158.29,3.34]
[1752334654086,551.512,158.38,158.35,6.3126]
[1752334654282,545.2,158.38,158.34,3.34]
[1752334654477,6.3123,158.37,158.35,3.34]
[1752334654788,545.2,158.38,158.35,3.34]
[1752334654993,545.2,158.38,158.31,3.34]
[1752334655290,5.20982209,158.42,158.37,3.34]
[1752334655485,6.3105,158.41,158.39,3.34]
[1752334655684,5.20982209,158.42,158.38,6.3114]
[1752334655989,5.20982209,158.42,158.39,3.34]
[1752334656182,6.3108,158.41,158.39,3.34]
[1752334656382,5.20982209,158.42,158.37,3.34]
[1752334656583,6.3111,158.4,158.33,5.20982209]
[1752334656784,6.3111,158.4,158.38,3.34]
[1752334656982,5.20982209,158.41,158.38,3.34]
[1752334657177,6.3113,158.39,158.38,3.34]
[1752334657585,5.20982209,158.41,158.35,3.34]
[1752334657785,6.3119,158.38,158.35,3.34]
[1752334657986,5.20982209,158.39,158.32,3.34]
[1752334658185,5.20982209,158.39,158.36,3.34]
[1752334658382,6.3121,158.37,158.36,3.34]
[1752334658984,6.3118,158.38,158.37,3.34]
[1752334659187,5.20982209,158.41,158.39,3.34]
[1752334659387,5.20982209,158.41,158.4,3.34]
[1752334659691,545.32,158.46,158.41,3.34]
[1752334659885,5.20982209,158.45,158.35,5.20982209]
[1752334660086,5.20982209,158.45,158.36,3.34]
[1752334660283,5.20982209,158.45,158.43,3.34]
[1752334660485,5.20982209,158.44,158.36,3.34]
[1752334660982,5.20982209,158.44,158.4,3.34]
[1752334661183,5.20982209,158.45,158.4,3.34]
[1752334661786,545.32,158.46,158.4,3.34]
[1752334662483,5.20982209,158.45,158.4,3.34]
[1752334662888,6.3096,158.44,158.41,3.34]
[1752334663587,747.68,158.46,158.44,3.34]
[1752334663888,545.32,158.46,158.45,3.34]
[1752334664086,6.3085,158.46,158.45,3.34]
[1752334664284,202.4,158.48,158.39,5.20982209]
[1752334664490,202.4,158.48,158.4,3.34]
[1752334664691,6.3086,158.46,158.4,3.34]
[1752334665692,6.3086,158.46,158.42,6.3098]
[1752334665894,5.20982209,158.47,158.38,3.49]
[1752334666296,5.20982209,158.47,158.44,3.49]
[1752334666790,207.08982209,158.48,158.45,3.49]
[1752334666987,6.3085,158.46,158.45,3.49]
[1752334667201,5.20982209,158.46,158.36,3.49]
[1752334667593,6.3103,158.42,158.35,5.20982209]
[1752334667793,5.20982209,158.46,158.39,3.49]
[1752334668185,5.20982209,158.46,158.41,3.49]
[1752334668385,5.20982209,158.46,158.42,3.49]
[1752334668589,6.3102,158.42,158.39,6.311]
[1752334668794,5.20982209,158.44,158.34,5.20982209]
[1752334668985,5.20982209,158.44,158.41,3.49]
[1752334669591,5.20982209,158.44,158.42,3.49]
[1752334669792,5.20982209,158.46,158.42,3.49]
[1752334669992,5.20982209,158.48,158.39,3.49]
[1752334670193,5.20982209,158.48,158.4,5.20982209]
[1752334670493,6.3082,158.47,158.45,3.49]
[1752334670997,6.3082,158.47,158.46,3.49]
[1752334671899,6.3078,158.48,158.46,3.49]
[1752334672197,206.60982209,158.5,158.41,3.49]
[1752334672393,201.4,158.5,158.41,3.49]
[1752334672602,206.60982209,158.5,158.41,3.49]
[1752334672899,5.20982209,158.48,158.41,3.49]
[1752334673599,6.3087,158.46,158.43,6.3094]
[1752334673901,5.20982209,158.48,158.44,3.49]
[1752334674100,6.3086,158.46,158.44,3.49]
[1752334674811,5.20717415,158.45,158.39,3.49]
[1752334675102,225.49717415,158.5,158.39,3.49]
[1752334675402,5.20717415,158.45,158.39,3.49]
[1752334675702,5.20717415,158.47,158.41,6.3102]
[1752334675902,5.20717415,158.47,158.42,3.49]
[1752334676291,6.3091,158.45,158.42,3.49]
[1752334676896,6.3086,158.46,158.42,3.49]
[1752334677501,6.3082,158.47,158.42,3.49]
[1752334678201,6.3079,158.48,158.41,3.49]
[1752334678903,6.3079,158.48,158.45,6.3088]
[1752334679203,6.3075,158.49,158.46,3.49]
[1752334679501,201.4,158.5,158.46,3.49]
[1752334679702,6.3076,158.49,158.46,3.49]
[1752334680205,201.4,158.5,158.46,3.49]